bitfinex/quotes_SOLUSD_20250811
["timestamp","ask_amount","ask_price","bid_price","bid_amount"]
[1754923863379,0.69,178.94,178.92,50.75396606]
[1754923863682,0.69,178.94,178.93,9.53396606]
[1754923864317,0.69,178.94,178.92,76.75396606]
[1754923864593,0.69,178.94,178.93,9.53396606]
[1754923864794,9.53396606,178.98,178.93,9.53396606]
[1754923865001,140.0,178.97,178.93,9.53396606]
[1754923865369,0.69,178.96,178.93,9.53396606]
[1754923865569,0.69,178.95,178.94,9.53396606]
[1754923866708,0.69,178.95,178.91,5.58940149]
[1754923866879,0.69,178.95,178.94,26.0]
[1754923867212,0.69,178.95,178.94,35.53396606]
[1754923867393,0.69,178.95,178.94,26.0]
[1754923868198,0.69,178.95,178.94,35.53396606]
[1754923868896,0.69,178.95,178.94,26.0]
[1754923869208,0.69,178.95,178.94,35.53396606]
[1754923869390,0.69,178.95,178.94,26.0]
[1754923870130,0.69,178.95,178.94,35.53396606]
[1754923870482,0.69,178.95,178.91,9.59396606]
[1754923870784,0.69,178.95,178.92,50.75396606]
[1754923871002,15.12158115,178.97,178.92,50.75396606]
[1754923871203,0.69,178.95,178.94,9.53396606]
[1754923872274,0.69,178.95,178.94,9.59396606]
[1754923873309,0.69,178.95,178.94,0.06]
[1754923873882,0.69,178.95,178.94,9.59396606]
[1754923874994,0.69,178.95,178.94,0.06]
[1754923875387,0.69,178.95,178.94,9.59396606]
[1754923876010,0.69,178.95,178.94,0.06]
[1754923876214,0.69,178.95,178.94,9.59396606]
[1754923876798,0.69,178.97,178.94,15.18243146]
[1754923877121,0.69,178.96,178.95,9.53396606]
[1754923878209,0.69,178.96,178.94,9.59396606]
[1754923878405,0.69,178.96,178.94,0.06]
[1754923878617,9.53396606,178.95,178.91,0.06]
[1754923878799,10.22396606,178.94,178.91,0.06]
[1754923879000,0.69,178.94,178.91,9.59396606]
[1754923879718,0.69,178.93,178.91,0.06]
[1754923880405,0.69,178.93,178.91,9.59396606]
[1754923880406,140.0,178.92,178.91,9.59396606]
[1754923880626,140.69,178.92,178.91,9.59396606]
[1754923881223,140.69,178.92,178.91,0.06]
[1754923883432,140.69,178.92,178.91,9.59396606]
[1754923883604,140.0,178.92,178.91,9.59396606]
[1754923884016,140.0,178.92,178.91,0.06]
[1754923884231,140.69,178.92,178.91,9.59396606]
[1754923885218,140.0,178.92,178.91,9.59396606]
[1754923885417,140.0,178.92,178.91,15.18336855]
[1754923885640,140.69,178.92,178.91,9.59396606]
[1754923886616,140.69,178.92,178.91,0.06]
[1754923888017,150.22396606,178.92,178.91,0.06]
[1754923888219,155.81305615,178.92,178.91,0.06]
[1754923888915,170.91927172,178.92,178.91,0.06]
[1754923889117,30.91927172,178.92,178.91,0.06]
[1754923890627,0.69,178.92,178.91,0.06]
[1754923891235,6.27909009,178.92,178.91,0.06]
[1754923891642,0.69,178.92,178.91,0.06]
[1754923892242,10.22396606,178.92,178.91,0.06]
[1754923892545,30.91927172,178.92,178.91,0.06]
[1754923893546,41.10621557,178.9,178.89,0.06]
[1754923893751,41.10621557,178.88,178.86,0.06]
[1754923894056,15.10621557,178.86,178.85,0.06]
[1754923894354,24.64018163,178.86,178.85,0.06]
[1754923894663,25.35018163,178.86,178.85,0.06]
[1754923895432,0.71,178.86,178.85,0.06]
[1754923895637,5.590965,178.86,178.85,0.06]
[1754923895837,35.59070404,178.87,178.85,0.06]
[1754923896040,30.0,178.87,178.86,9.53396606]
[1754923896242,30.0,178.87,178.85,0.06]
[1754923896565,0.71,178.88,178.85,9.59396606]
[1754923896942,0.71,178.88,178.86,9.53396606]
[1754923897745,41.22,178.89,178.86,9.53396606]
[1754923897944,140.0,178.86,178.85,5.65123059]
[1754923898147,140.0,178.86,178.85,15.18519665]
[1754923898558,140.0,178.86,178.85,5.95123059]
[1754923898882,140.0,178.86,178.85,15.18519665]
[1754923899640,140.0,178.86,178.85,5.65123059]
[1754923899858,140.0,178.86,178.85,15.18519665]
[1754923903353,150.24396606,178.86,178.85,0.06]
[1754923903550,212.16114663,178.86,178.85,0.06]
[1754923903752,9.53396606,178.83,178.82,0.06]
[1754923903969,41.22,178.83,178.82,0.06]
[1754923904156,55.17360661,178.83,178.82,0.06]
[1754923904973,60.76550953,178.83,178.82,0.06]
[1754923905859,60.76489508,178.83,178.82,0.06]
[1754923906574,75.87111065,178.83,178.82,0.06]
[1754923906874,55.17299216,178.83,178.82,0.06]
[1754923907058,60.76489508,178.83,178.82,0.06]
[1754923908172,146.41,178.85,178.82,0.06]
[1754923908366,187.63,178.85,178.82,9.59396606]
[1754923908565,0.71,178.88,178.84,9.53396606]
[1754923908875,41.93,178.87,178.84,9.53396606]
[1754923909075,41.22,178.87,178.86,9.53396606]
[1754923909256,45.63896886,178.87,178.85,9.53396606]
[1754923909578,41.93,178.87,178.84,9.53396606]
[1754923909878,140.0,178.85,178.82,6.01216993]
[1754923910077,140.0,178.85,178.83,0.36]
[1754923910669,140.0,178.85,178.84,5.59159024]
[1754923911062,140.0,178.85,178.83,5.59186385]
[1754923911887,140.0,178.85,178.84,9.53396606]
[1754923912671,140.0,178.85,178.82,0.06]
[1754923912850,140.0,178.85,178.82,5.65216945]
[1754923913064,140.0,178.85,178.84,9.53396606]
[1754923914259,140.71,178.85,178.84,9.53396606]
[1754923914657,140.71,178.85,178.82,0.06]
[1754923914658,140.71,178.85,178.83,9.53396606]
[1754923914859,51.44396606,178.84,178.82,0.06]
[1754923915082,9.53396606,178.83,178.82,0.06]
[1754923915576,0.71,178.83,178.82,0.06]
[1754923916571,6.30190292,178.83,178.82,0.06]
[1754923916764,15.83586898,178.83,178.82,0.06]
[1754923917551,19.54882038,178.83,178.82,0.06]
[1754923917755,34.65503595,178.83,178.82,0.06]
[1754923918565,15.10621557,178.8,178.78,0.06]
[1754923918765,54.44691746,178.79,178.78,0.06]
[1754923918966,70.21313303,178.79,178.78,0.06]
[1754923919579,4.3729514,178.79,178.78,0.06]
[1754923919773,41.86,178.79,178.78,0.06]
[1754923919984,45.5729514,178.79,178.78,0.06]
[1754923920384,51.16610537,178.79,178.78,0.06]
[1754923920698,51.16150682,178.79,178.78,0.06]
[1754923920874,56.98712003,178.79,178.78,0.06]
[1754923921189,75.80134832,178.79,178.78,0.06]
[1754923922474,105.80134832,178.79,178.78,0.06]
[1754923923381,55.06738226,178.79,178.78,0.06]
[1754923923588,71.2,178.79,178.78,0.06]
[1754923923974,41.2,178.79,178.78,0.06]
[1754923925805,41.2,178.8,178.78,0.06]
[1754923926007,46.79289605,178.8,178.78,0.06]
[1754923926182,41.2,178.8,178.78,0.06]
[1754923926378,0.66,178.82,178.78,9.59396606]
[1754923926586,3.70691954,178.83,178.81,9.53396606]
[1754923926983,4.3677142,178.83,178.81,9.53396606]
[1754923927202,41.2,178.84,178.82,9.53396606]
[1754923927589,0.03,178.85,178.83,9.53396606]
[1754923927792,0.03,178.85,178.82,0.42]
[1754923928090,0.03,178.85,178.84,9.53396606]
[1754923930312,0.03,178.85,178.84,15.1255563]
[1754923930511,0.03,178.85,178.84,15.5455563]
[1754923930713,0.03,178.85,178.84,41.5455563]
[1754923932689,0.03,178.89,178.88,26.0]
[1754923932890,0.03,178.89,178.88,35.53396606]
[1754923933393,0.03,178.89,178.88,35.95396606]
[1754923933718,1e-08,178.89,178.88,51.06018163]
[1754923934009,1e-08,178.91,178.89,15.10621557]
[1754923934210,0.03,178.98,178.93,26.0]
[1754923934387,0.03,178.98,178.97,9.53396606]
[1754923934814,0.03,178.98,178.97,15.12149469]
[1754923936318,0.03,178.98,178.97,9.53396606]
[1754923936519,0.03,178.98,178.97,15.54149469]
[1754923937107,0.03,178.98,178.97,15.12149469]
[1754923937417,0.03,178.98,178.96,41.16]
[1754923937715,0.03,178.98,178.97,9.53396606]
[1754923938509,0.03,178.98,178.97,9.95396606]
[1754923938703,0.03,179.0,178.99,26.0]
[1754923938901,0.03,179.0,178.99,35.53396606]
[1754923939224,0.03,179.0,178.95,2.236948]
[1754923939398,0.66,178.99,178.97,26.0]
[1754923939921,0.66,178.99,178.94,41.14]
[1754923939922,0.66,178.98,178.94,67.14]
[1754923940120,0.66,178.97,178.96,9.53396606]
[1754923940296,0.66,178.97,178.96,35.53396606]
[1754923940494,0.66,178.97,178.95,26.0]
[1754923940694,0.66,178.96,178.93,9.53396606]
[1754923940898,0.66,178.95,178.91,11.77141506]
[1754923941093,9.53396606,178.96,178.91,11.77141506]
[1754923941297,5.61730458,178.98,178.9,9.53396606]
[1754923941298,0.66,178.94,178.9,9.53396606]
[1754923941501,0.66,178.94,178.91,9.53396606]
[1754923941716,0.66,178.97,178.91,26.0]
[1754923941902,0.66,178.97,178.93,9.53396606]
[1754923942620,15.15127064,178.98,178.93,9.53396606]
[1754923942803,0.66,178.96,178.93,9.53396606]
[1754923943310,6.27728706,178.98,178.95,9.53396606]
[1754923943625,6.27728706,178.98,178.91,31.58935939]
[1754923943626,0.66,178.97,178.92,9.53396606]
[1754923943820,0.66,178.96,178.92,9.53396606]
[1754923944005,0.03,178.98,178.93,26.42]
[1754923944205,0.03,178.98,178.97,9.53396606]
[1754923944408,0.69,178.98,178.96,9.53396606]
[1754923944726,15.78176557,178.97,178.92,50.65396606]
[1754923944924,15.12176557,178.97,178.92,50.65396606]
[1754923945241,15.12176557,178.97,178.9,31.5894279]
[1754923945242,140.0,178.95,178.9,26.0]
[1754923945397,140.0,178.95,178.92,9.53396606]
[1754923945597,140.0,178.95,178.93,9.53396606]
[1754923945899,140.0,178.95,178.94,9.53396606]
[1754923946396,140.0,178.95,178.93,9.53396606]
[1754923946598,140.0,178.95,178.92,9.53396606]
[1754923946906,140.66,178.95,178.93,9.53396606]
[1754923947303,140.0,178.95,178.93,9.53396606]
[1754923947514,140.0,178.95,178.94,9.53396606]
[1754923947718,140.66,178.95,178.9,26.0]
[1754923947928,140.66,178.95,178.89,35.53396606]
[1754923947929,10.19396606,178.94,178.89,35.53396606]
[1754923948126,10.19396606,178.93,178.88,9.53396606]
[1754923948304,0.7,178.92,178.87,50.65396606]
[1754923948627,9.53396606,178.94,178.88,9.53396606]
[1754923948820,6.28871482,178.94,178.9,9.53396606]
[1754923949130,5.58792109,178.96,178.92,9.53396606]
[1754923949424,0.7,178.96,178.93,9.53396606]
[1754923949929,0.7,178.95,178.89,6.01000143]
[1754923950112,0.7,178.95,178.91,9.53396606]
[1754923950300,9.53396606,178.97,178.93,9.53396606]
[1754923950301,0.7,178.97,178.93,9.53396606]
[1754923950910,5.58774666,178.97,178.93,9.53396606]
[1754923951114,140.0,178.94,178.93,9.53396606]
[1754923951926,140.0,178.94,178.93,9.95396606]
[1754923952124,140.0,178.94,178.93,15.54274379]
[1754923952505,0.03,178.98,178.93,15.54274379]
[1754923952700,0.73,178.98,178.97,9.53396606]
[1754923952906,0.03,178.98,178.97,9.53396606]
[1754923953508,0.03,178.98,178.95,26.0]
[1754923953709,0.03,178.98,178.97,9.53396606]
[1754923954629,0.03,178.98,178.97,9.95396606]
[1754923954830,0.03,178.98,178.97,51.05396606]
[1754923955036,0.03,178.98,178.97,47.10752863]
[1754923955265,0.03,178.98,178.97,56.64149469]
[1754923955531,0.03,178.98,178.97,72.30646312]
[1754923955703,0.03,178.98,178.97,71.74771026]
[1754923957936,140.03,179.0,178.99,26.0]
[1754923958231,0.03,179.0,178.99,35.95396606]
[1754923958440,0.03,179.0,178.99,36.51265648]
[1754923958639,0.03,179.0,178.99,51.61887205]
[1754923959437,0.03,179.01,179.0,15.10621557]
[1754923959609,0.03,179.01,179.0,65.72018163]
[1754923959810,0.03,179.01,179.0,71.7267738]
[1754923960724,0.03,179.02,179.0,71.7267738]
[1754923960931,0.03,179.02,179.01,25.06018163]
[1754923961438,1e-08,179.03,179.02,34.17414769]
[1754923961642,0.03,179.05,179.02,34.59414769]
[1754923961839,0.03,179.05,179.03,71.30583766]
[1754923962710,0.03,179.05,179.03,73.54141166]
[1754923963837,0.03,179.05,179.03,77.99338018]
[1754923964035,0.03,179.05,179.03,87.94734624]
[1754923964337,0.03,179.05,179.04,15.10621557]
[1754923964546,0.03,179.05,179.04,34.59414769]
[1754923965239,140.03,179.08,179.04,34.59414769]
[1754923965240,140.03,179.08,179.07,26.0]
[1754923965417,140.03,179.08,179.07,76.59396606]
[1754923966132,140.03,179.08,179.07,82.17837439]
[1754923967330,0.03,179.08,179.07,82.17837439]
[1754923967738,1e-08,179.08,179.07,82.17837439]
[1754923968053,1e-08,179.1,179.09,20.69000025]
[1754923968349,0.2,179.16,179.13,26.0]
[1754923968556,0.2,179.16,179.15,9.53396606]
[1754923968717,0.2,179.16,179.15,35.53396606]
[1754923969055,0.2,179.16,179.15,26.0]
[1754923969222,0.2,179.16,179.15,19.06793212]
[1754923969930,0.2,179.16,179.15,9.53396606]
[1754923970429,0.9,179.16,179.15,50.57396606]
[1754923971546,0.2,179.16,179.15,50.57396606]
[1754923972326,0.9,179.16,179.15,50.57396606]
[1754923972938,0.9,179.16,179.14,9.53396606]
[1754923973128,0.2,179.16,179.14,9.53396606]
[1754923973448,0.2,179.16,179.14,41.02]
[1754923973748,0.7,179.15,179.14,41.02]
[1754923974476,0.7,179.15,179.14,50.55396606]
[1754923974752,0.7,179.15,179.14,41.02]
[1754923974937,6.28191459,179.15,179.14,41.02]
[1754923975137,0.7,179.15,179.14,41.02]
[1754923975738,0.7,179.15,179.13,50.55396606]
[1754923976336,0.7,179.14,179.13,50.55396606]
[1754923976538,0.7,179.14,179.09,15.31559606]
[1754923976539,6.28232427,179.14,179.09,15.31559606]
[1754923976836,0.7,179.13,179.1,41.02]
[1754923977038,13.91801846,179.13,179.08,41.02]
[1754923977238,0.7,179.12,179.09,9.53396606]
[1754923977443,0.7,179.11,179.09,9.53396606]
[1754923978053,0.7,179.11,179.1,9.53396606]
[1754923978358,0.7,179.11,179.08,41.02]
[1754923978359,0.7,179.11,179.09,9.53396606]
[1754923979741,6.28320838,179.11,179.09,9.53396606]
[1754923980153,0.7,179.11,179.09,9.53396606]
[1754923980361,5.58291385,179.12,179.09,9.53396606]
[1754923980655,6.30291385,179.12,179.08,41.02]
[1754923980969,9.53396606,179.1,179.05,15.375596]
[1754923981126,10.25396606,179.09,179.05,56.395596]
[1754923981327,19.54003756,179.12,179.05,15.375596]
[1754923981328,4.40047196,179.08,179.05,15.375596]
[1754923981553,0.72,179.07,179.05,15.375596]
[1754923982065,9.53396606,179.08,179.05,0.06]
[1754923982357,5.58437483,179.08,179.05,0.06]
[1754923982557,6.30437483,179.08,179.05,0.06]
[1754923982758,0.72,179.07,179.05,0.06]
[1754923983148,0.72,179.06,179.05,0.06]
[1754923983945,10.25396606,179.06,179.05,0.06]
[1754923984440,15.83868626,179.06,179.05,0.06]
[1754923984852,34.62617945,179.06,179.05,0.06]
[1754923985757,19.51996388,179.06,179.05,0.06]
[1754923987050,15.83868626,179.06,179.05,0.06]
[1754923987263,34.62669537,179.06,179.05,0.06]
[1754923988580,34.62669537,179.06,179.03,0.06]
[1754923988581,15.10621557,179.05,179.03,0.06]
[1754923988749,33.90813833,179.04,179.03,0.06]
[1754923989054,75.62813833,179.04,179.03,0.06]
[1754923989256,66.09417227,179.04,179.03,0.06]
[1754923989571,66.09417227,179.04,179.03,1e-08]
[1754923989572,75.62813833,179.04,179.03,1e-08]
[1754923991696,66.09417227,179.04,179.03,1e-08]
[1754923991869,50.9879567,179.04,179.03,1e-08]
[1754923992047,76.58534405,179.04,179.03,1e-08]
[1754923992388,46.58534405,179.04,179.03,1e-08]
[1754923992684,75.63112423,179.04,179.03,1e-08]
[1754923992838,50.9909426,179.04,179.03,1e-08]
[1754923993043,46.58534405,179.04,179.03,1e-08]
[1754923993483,50.27356784,179.04,179.03,1e-08]
[1754923993775,46.58534405,179.04,179.03,1e-08]
[1754923993972,5.58447131,179.07,179.03,9.53396607]
[1754923994151,5.58447131,179.07,179.06,9.53396606]
[1754923994344,5.58447131,179.07,179.03,1e-08]
[1754923994345,15.11843737,179.07,179.03,1e-08]
[1754923994657,33.68836958,179.06,179.03,1e-08]
[1754923994847,5.58503211,179.05,179.03,1e-08]
[1754923995350,5.58503211,179.05,179.03,9.53396607]
[1754923995549,5.58503211,179.05,179.03,1e-08]
[1754923996366,10.25396606,179.04,179.03,1e-08]
[1754923996542,3.69103386,179.04,179.03,1e-08]
[1754923996970,9.27547432,179.05,179.03,1e-08]
[1754923997476,10.25396606,179.04,179.03,1e-08]
[1754923997674,29.05062384,179.04,179.03,1e-08]
[1754923998278,49.51665778,179.04,179.03,1e-08]
[1754923998582,59.05062384,179.04,179.03,1e-08]
[1754923998779,33.69044221,179.04,179.03,1e-08]
[1754923998995,80.99578626,179.04,179.03,1e-08]
[1754923999676,90.52975232,179.04,179.03,1e-08]
[1754923999874,105.63596789,179.04,179.03,1e-08]
[1754924000679,15.10621557,179.03,179.01,0.06]
[1754924000881,13.22440827,179.02,179.01,0.06]
[1754924001057,18.81037631,179.02,179.01,0.06]
[1754924001259,60.53019052,179.02,179.01,0.06]
[1754924001476,75.63640609,179.02,179.01,0.06]
[1754924001777,105.63640609,179.02,179.01,0.06]
[1754924001956,104.91640609,179.02,179.01,0.06]
[1754924002163,80.27622446,179.02,179.01,0.06]
[1754924002953,96.10244003,179.02,179.01,0.06]
[1754924003159,66.10244003,179.02,179.01,0.06]
[1754924003460,75.63640609,179.02,179.01,0.06]
[1754924004376,74.91640609,179.02,179.01,0.06]
[1754924004879,75.63640609,179.02,179.01,0.06]
[1754924005452,74.91640609,179.02,179.01,0.06]
[1754924005657,9.27622446,179.02,179.01,0.06]
[1754924005858,59.81019052,179.02,179.01,0.06]
[1754924006283,89.81019052,179.02,179.01,0.06]
[1754924006965,90.53019052,179.02,179.01,0.06]
[1754924007173,105.63640609,179.02,179.01,0.06]
[1754924007854,80.27622446,179.02,179.01,0.06]
[1754924008067,35.58596804,179.02,179.01,9.59396606]
[1754924008265,35.58596804,179.02,179.01,0.06]
[1754924008470,5.58596804,179.02,179.01,0.06]
[1754924009765,18.80520274,179.02,179.01,0.06]
[1754924009965,34.62141831,179.02,179.01,0.06]
[1754924011390,64.62141831,179.02,179.01,0.06]
[1754924012018,15.10621557,179.01,178.97,0.06]
[1754924012296,24.64018163,178.98,178.97,0.06]
[1754924012470,40.98,178.98,178.97,0.06]
[1754924012674,40.98,178.99,178.97,0.06]
[1754924013071,5.58596804,179.02,178.98,9.95396606]
[1754924013297,9.26928094,179.02,179.0,9.53396606]
[1754924013478,5.58596804,179.02,179.0,9.53396606]
[1754924013679,5.58596804,179.02,179.0,9.95396606]
[1754924013874,5.58596804,179.02,179.0,0.42]
[1754924014078,5.58596804,179.02,178.99,9.53396606]
[1754924014470,5.58596804,179.02,178.97,0.48]
[1754924014471,60.49704077,179.02,178.97,9.59396606]
[1754924014680,5.58596804,179.02,178.99,9.53396606]
[1754924014902,5.58596804,179.02,178.99,9.95396606]
[1754924015398,9.27574957,179.02,178.99,9.95396606]
[1754924016002,9.27574957,179.02,178.99,9.53396606]
[1754924016386,0.71,179.01,178.97,9.59396606]
[1754924016588,4.39978153,179.01,178.97,9.59396606]
[1754924016786,45.37978153,179.01,178.97,9.59396606]
[1754924017004,3.68978153,179.0,178.97,0.06]
[1754924017195,4.39978153,179.0,178.97,0.06]
[1754924017499,5.58690429,178.99,178.97,0.06]
[1754924017887,5.58690429,178.99,178.97,9.59396606]
[1754924018089,5.58690429,178.99,178.98,9.53396606]
[1754924018405,5.58690429,178.99,178.97,9.59396606]
[1754924018601,5.58690429,178.99,178.97,0.06]
[1754924018811,6.29690429,178.99,178.97,0.06]
[1754924019102,56.81087035,178.99,178.97,0.06]
[1754924019306,143.68978153,178.98,178.97,0.06]
[1754924019599,143.68978153,178.98,178.97,9.59396606]
[1754924019907,143.68978153,178.98,178.97,10.01396606]
[1754924020195,140.0,178.98,178.97,10.01396606]
[1754924021500,140.0,178.98,178.97,15.60149469]
[1754924022006,5.61538307,179.04,178.97,15.60149469]
[1754924022179,3.71151624,179.03,178.97,5.64752863]
[1754924022375,3.71151624,179.02,178.98,0.42]
[1754924022580,3.71151624,179.03,178.98,0.42]
[1754924022903,3.71151624,179.02,178.98,0.42]
[1754924023093,5.61538307,179.04,178.98,6.00718013]
[1754924023094,9.29720157,179.03,178.98,6.00718013]
[1754924023300,3.71151624,179.02,178.99,0.42]
[1754924023480,5.58568533,179.03,179.01,9.53396606]
[1754924023679,3.71609851,179.02,179.01,9.53396606]
[1754924024177,3.71609851,179.03,179.01,9.95396606]
[1754924024391,3.71609851,179.02,178.98,5.58718013]
[1754924024606,0.03,179.04,178.98,5.58718013]
[1754924024808,3.72041295,179.03,178.98,5.58718013]
[1754924025103,140.0,179.01,179.0,26.0]
[1754924025484,140.0,179.01,179.0,41.54055823]
[1754924026401,140.0,179.01,179.0,35.53396606]
[1754924027187,140.0,179.01,179.0,35.95396606]
[1754924027702,140.0,179.01,179.0,41.54055823]
[1754924028714,0.03,179.04,179.0,56.6467738]
[1754924028883,0.03,179.04,179.03,9.53396606]
[1754924029283,0.03,179.04,179.0,48.77901817]
[1754924029509,3.72409669,179.03,179.01,9.53396606]
[1754924029816,4.43263996,179.02,179.01,26.0]
[1754924029992,3.72263996,179.02,179.01,9.53396606]
[1754924030390,3.72263996,179.03,179.01,9.53396606]
[1754924030620,3.75263996,179.04,179.02,9.53396606]
[1754924030916,3.75263996,179.04,179.03,9.53396606]
[1754924031095,0.03,179.04,179.03,9.95396606]
[1754924031503,0.03,179.04,179.03,15.53962209]
[1754924032603,0.03,179.04,179.03,56.47962209]
[1754924032802,0.03,179.04,179.03,66.01358815]
[1754924032999,0.03,179.05,179.03,66.01358815]
[1754924033317,0.03,179.05,179.04,19.48793212]
[1754924033501,0.03,179.05,179.04,25.07327617]
[1754924034023,0.03,179.07,179.06,26.0]
[1754924034201,0.03,179.07,179.06,35.53396606]
[1754924034393,0.03,179.07,179.06,35.95396606]
[1754924035196,0.03,179.07,179.06,35.53396606]
[1754924035417,0.03,179.07,179.06,41.53868626]
[1754924035706,0.03,179.1,179.06,41.53868626]
[1754924035707,0.03,179.1,179.09,26.0]
[1754924036028,0.03,179.15,179.09,76.45396606]
[1754924036209,0.03,179.15,179.12,9.53396606]
[1754924038320,0.74,179.15,179.12,9.53396606]
[1754924038507,0.74,179.15,179.12,35.95396606]
[1754924038508,0.03,179.15,179.12,35.95396606]
[1754924038820,0.03,179.15,179.14,19.06793212]
[1754924039126,0.2,179.16,179.14,59.96793212]
[1754924039328,0.2,179.16,179.15,45.48793212]
[1754924039622,0.2,179.16,179.15,35.53396606]
[1754924040497,0.03,179.17,179.16,26.0]
[1754924040697,0.03,179.17,179.16,45.06793212]
[1754924041314,0.03,179.17,179.16,45.48793212]
[1754924041517,0.03,179.17,179.16,35.53396606]
[1754924041729,0.74,179.17,179.16,76.43396606]
[1754924041943,0.03,179.17,179.16,76.43396606]
[1754924043121,0.03,179.17,179.16,85.96793212]
[1754924043518,0.03,179.17,179.16,76.85396606]
[1754924043718,0.03,179.17,179.16,60.38793212]
[1754924044229,0.03,179.17,179.16,50.85396606]
[1754924044406,0.03,179.17,179.16,50.43396606]
[1754924046206,0.03,179.17,179.16,46.84684321]
[1754924046408,0.74,179.17,179.16,5.94684321]
[1754924046627,0.74,179.17,179.16,46.82684321]
[1754924046816,0.74,179.17,179.16,40.88]
[1754924048339,0.74,179.17,179.15,26.0]
[1754924048642,0.03,179.17,179.16,40.86]
[1754924048931,0.03,179.17,179.15,26.0]
[1754924048932,11.55813472,179.17,179.14,0.06]
[1754924049143,5.94684321,179.15,179.14,0.06]
[1754924049538,6.65684321,179.15,179.14,0.06]
[1754924049741,12.2387578,179.15,179.14,0.06]
[1754924050250,15.81755138,179.15,179.14,0.06]
[1754924054044,30.92376695,179.15,179.14,0.06]
[1754924054627,15.81755138,179.15,179.14,0.06]
[1754924054865,6.29191459,179.15,179.14,0.06]
[1754924055166,0.71,179.15,179.14,0.06]
[1754924055398,6.29191459,179.15,179.14,0.06]
[1754924055863,0.71,179.15,179.14,0.06]
[1754924056226,10.23563679,179.15,179.14,0.06]
[1754924056428,15.81755138,179.15,179.14,0.06]
[1754924057068,5.61134136,179.17,179.14,9.58563679]
[1754924057271,9.52563679,179.15,179.14,0.06]
[1754924057470,24.63185236,179.15,179.14,0.06]
[1754924057669,25.34185236,179.15,179.14,0.06]
[1754924058577,10.23563679,179.15,179.14,0.06]
[1754924059151,30.92376695,179.15,179.14,0.06]
[1754924060372,34.61838576,179.15,179.14,0.06]
[1754924061189,34.61838576,179.15,179.14,1e-08]
[1754924062080,25.09274897,179.15,179.14,1e-08]
[1754924062253,34.61838576,179.15,179.14,1e-08]
[1754924062855,160.80621557,179.14,179.0,0.42]
[1754924063069,9.52563679,179.05,179.0,0.42]
[1754924063377,15.11045613,179.06,179.03,26.0]
[1754924063763,15.82045613,179.06,179.03,26.0]
[1754924063965,9.52563679,179.04,178.98,50.36563679]
[1754924064186,9.52563679,179.04,178.97,0.48]
[1754924064187,9.52563679,179.02,178.97,10.00563679]
[1754924064384,10.23563679,179.02,179.0,26.0]
[1754924064578,140.0,179.03,179.0,26.0]
[1754924065206,140.0,179.03,178.99,9.52563679]
[1754924065498,140.0,179.03,179.0,9.52563679]
[1754924065703,140.0,179.03,179.01,9.52563679]
[1754924065871,140.0,179.03,179.02,9.52563679]
[1754924066576,140.0,179.03,179.02,9.94563679]
[1754924067601,140.0,179.03,179.02,9.52563679]
[1754924067978,5.58449046,179.07,179.02,9.94563679]
[1754924068177,5.58449046,179.07,179.03,9.52563679]
[1754924068883,0.66,179.06,178.99,26.42]
[1754924069087,4.36361775,179.06,179.02,9.52563679]
[1754924069284,15.11012725,179.07,179.02,9.52563679]
[1754924069476,9.52563679,179.04,179.0,40.84]
[1754924069679,0.66,179.03,179.0,0.06]
[1754924069889,0.66,179.03,179.02,0.06]
[1754924070093,10.18563679,179.03,179.02,0.06]